fUSD/lending_fUSD_20250101
["ID","MTS","AMOUNT","RATE_DAILY","PERIOD"]
[347392593,1735758646669,-1449.85,0.00010958,2]
[347392594,1735758646679,-500.0,0.00010958,2]
[347392595,1735758646688,-512.51,0.00010958,2]
[347392596,1735758646699,-907.96,0.00010958,2]
[347392597,1735758646708,-541.38,0.00010958,2]
[347392598,1735758646718,-583.28,0.00010958,2]
[347392599,1735758646730,-513.4,0.00010958,2]
[347392600,1735758646740,-500.0,0.00010958,2]
[347392601,1735758646749,-1850.56,0.00010958,2]
[347392602,1735758646758,-654.3,0.00010958,2]
[347392603,1735758646769,-1896.07,0.00010958,2]
[347392604,1735758646778,-1378.77,0.00010958,2]
[347392605,1735758646787,-500.0,0.00010958,2]
[347392606,1735758646798,-500.0,0.00010958,2]
[347392607,1735758646807,-1871.51,0.00010958,2]
[347392608,1735758646817,-1550.61,0.00010958,2]
[347392609,1735758646826,-503.89,0.00010958,2]
[347392610,1735758646835,-500.0,0.00010958,2]
[347392611,1735758646844,-500.0,0.00010958,2]
[347392612,1735758646853,-500.0,0.00010958,2]
[347392613,1735758646863,-500.0,0.00010958,2]
[347392614,1735758646872,-500.0,0.00010958,2]
[347392615,1735758646881,-2103.94,0.00010958,2]
[347392616,1735758646890,-1129.84,0.00010958,2]
[347392617,1735758646900,-500.0,0.00010958,2]
[347392618,1735758647173,-800.93,0.00010958,2]
[347392619,1735758647236,-772.72,0.00010958,2]
[347392620,1735758647245,-333.40120141,0.00010958,2]
[347392621,1735758647254,-535.07,0.00010958,2]
[347392622,1735758647264,-22970.71,0.00010958,2]
[347392623,1735758647273,-12195.45111844,0.00010958,2]
[347392624,1735758647387,-697.76888156,0.00010958,2]
[347392625,1735758647396,-1406.81,0.00010958,2]
[347392626,1735758647405,-2119.16,0.00010958,2]
[347392627,1735758647414,-501.47,0.00010958,2]
[347392628,1735758647424,-639.52,0.00010958,2]
[347392629,1735758647433,-569.01564951,0.00010958,2]
[347392630,1735758647442,-500.0,0.00010958,2]
[347392631,1735758647451,-512.74,0.00010958,2]
[347392632,1735758647460,-500.0,0.00010958,2]
[347392633,1735758647469,-1258.77,0.00010958,2]
[347392634,1735758647478,-1582.59,0.00010958,2]
[347392635,1735758647487,-1035.84,0.00010958,2]
[347392636,1735758647496,-579.54103712,0.00010958,2]
[347392637,1735758647505,-1197.11,0.00010958,2]
[347392638,1735758647514,-1925.06,0.00010958,2]
[347392639,1735758647523,-647.07,0.00010958,2]
[347392640,1735758647533,-1664.72,0.00010958,2]
[347392641,1735758647543,-500.0,0.00010958,2]
[347392642,1735758647555,-1846.41,0.00010958,2]
[347392643,1735758647564,-14133.14,0.00010958,2]
[347392644,1735758647573,-539.41,0.00010958,2]
[347392645,1735758647582,-2024.02,0.00010958,2]
[347392646,1735758647591,-1364.74,0.00010958,2]
[347392647,1735758647602,-514.94,0.00010958,2]
[347392648,1735758647611,-374.90377503,0.00010958,2]
[347392649,1735758647623,-172.31622497,0.00010958,2]
[347392650,1735758647635,-500.0,0.00010958,2]
[347392651,1735758647644,-500.0,0.00010958,2]
[347392652,1735758647653,-500.0,0.00010958,2]
[347392653,1735758647663,-500.0,0.00010958,2]
[347392654,1735758647672,-1246.55,0.00010958,2]
[347392655,1735758647681,-500.0,0.00010958,2]
[347392656,1735758647690,-538.98,0.00010958,2]
[347392657,1735758647699,-1071.44592547,0.00010958,2]
[347392658,1735758647711,-640.64407453,0.00010958,2]
[347392659,1735758647720,-737.7,0.00010958,2]
[347392660,1735758647731,-656.88,0.00010958,2]
[347392661,1735758647740,-3203.46180547,0.00010958,2]
[347392662,1735758647751,-613.15,0.00010958,2]
[347392663,1735758647806,-476.50461337,0.00010958,2]
[347392664,1735758647817,-879.56358116,0.00010958,2]
[347392665,1735758647826,-1956.78,0.00010958,2]
[347392666,1735758647836,-500.0,0.00010958,2]
[347392667,1735758647845,-582.66,0.00010958,2]
[347392668,1735758647854,-773.51,0.00010958,2]
[347392669,1735758647864,-36.42316192,0.00010958,2]
[347392670,1735758647875,-463.57683808,0.00010958,2]
[347392671,1735758647884,-27.75586597,0.00010958,2]
[347392672,1735758647896,-472.24413403,0.00010958,2]
[347392673,1735758647905,-500.0,0.00010958,2]
[347392674,1735758647915,-399.78395961,0.00010958,2]
[347392675,1735758847827,869.5,8.219e-05,2]
[347392678,1735759157976,1228.19,9.674e-05,2]
[347392679,1735759176966,163.512077,9.641e-05,2]
[347392680,1735759529232,8179.22867517,9e-05,2]
[347392681,1735759537311,250.0,9.43e-05,2]
[347392682,1735759578772,98551.0,0.00024564,30]
[347392685,1735759662207,1570.77132483,9.419e-05,2]
[347392686,1735759662229,10000.0,9.419e-05,2]
[347392687,1735759662251,10000.0,9.419e-05,2]
[347392688,1735759662273,2329.22867517,9.419e-05,2]
[347392689,1735759685904,773.22,9.512e-05,2]
[347392690,1735759728284,841.72,8.219e-05,2]
[347392691,1735759781782,250.0,9.504e-05,2]
[347392698,1735759832442,-86.487923,9.641e-05,2]
[347392699,1735759832454,-164.12,9.668e-05,2]
[347392700,1735759832466,-558.95118096,9.668e-05,2]
[347392701,1735759832480,-159.29158111,9.668e-05,2]
[347392702,1735759832491,-676.70841889,9.706e-05,2]
[347392703,1735759832505,-41.53434316,9.706e-05,2]
[347392704,1735759832516,-718.24276205,9.743e-05,2]
[347392705,1735759832528,-1000.0,9.744e-05,2]
[347392706,1735759832539,-166.33207152,9.744e-05,2]
[347392707,1735759832552,-300.0,9.887e-05,2]
[347392708,1735759832563,-150.0,9.888e-05,2]
[347392709,1735759832574,-150.0,9.888e-05,2]
[347392710,1735759832586,-166.55,9.964e-05,2]
[347392711,1735759832598,-150.0,9.979e-05,2]
[347392712,1735759832609,-771.5,9.98e-05,2]
[347392713,1735759832621,-6036.9437708,0.0001,2]
[347392714,1735759832640,-150.11,0.00010064,2]
[347392715,1735759832658,-150.0,0.00010071,2]
[347392716,1735759832673,-200.0,0.00010072,2]
[347392717,1735759832687,-166.33207152,0.00010112,2]
[347392718,1735759832702,-159.56,0.00010137,2]
[347392719,1735759832715,-874.64,0.00010141,2]
[347392720,1735759832730,-1686.11,0.00010141,2]
[347392721,1735759832743,-150.0,0.00010162,2]
[347392722,1735759832757,-22.57984986,0.00010189,2]
[347392723,1735759832791,-3152.66415014,0.00010189,2]
[347392724,1735759832804,-173.782,0.00010189,2]
[347392725,1735759832816,-150.0,0.00010254,2]
[347392726,1735759832828,-150.0,0.00010254,2]
[347392727,1735759832842,-150.0,0.00010345,2]
[347392728,1735759832855,-460.94454667,0.00010366,2]
[347392729,1735759832870,-3086.30673023,0.00010366,2]
[347392731,1735759832886,-525.00000005,0.00010366,2]
[347392735,1735759832919,-535.59005592,0.00010366,2]
[347392738,1735759832932,-909.07,0.00010436,2]
[347392740,1735759832945,-150.0,0.00010437,2]
[347392742,1735759832957,-407.336,0.0001045,2]
[347392745,1735759832970,-841.72,0.00010452,2]
[347392748,1735759832982,-150.0,0.00010529,2]
[347392750,1735759832994,-150.49,0.00010564,2]
[347392752,1735759833006,-152.43,0.00010564,2]
[347392754,1735759833018,-150.27,0.00010572,2]
[347392757,1735759833030,-166.33207152,0.0001058,2]
[347392759,1735759833043,-200.0,0.00010595,2]
[347392761,1735759833055,-150.0,0.0001062,2]
[347392764,1735759833067,-150.0,0.0001062,2]
[347392766,1735759833080,-2033.5827,0.00010658,2]
[347392768,1735759833092,-2090.0295,0.00010658,2]
[347392770,1735759833104,-33144.4524,0.0001068,2]
[347392773,1735759833120,-787.212,0.0001068,2]
[347392775,1735759833132,-1000.0,0.0001069,2]
[347392777,1735759833145,-773.22,0.00010701,2]
[347392780,1735759833159,-150.0,0.00010712,2]
[347392782,1735759833171,-27272.73996895,0.00010758,2]
[347392784,1735759833187,-810.97479043,0.00010758,2]
[347392846,1735759838348,-6894.78465584,0.00010758,2]
[347392847,1735759838410,-408.499957,0.00010758,2]
[347392848,1735759838421,-2633.45634924,0.00010758,2]
[347392849,1735759838474,-3075.03694063,0.00010758,2]
[347392850,1735759838486,-1094.4549635,0.00010758,2]
[347392863,1735759840336,-395.88,0.00010758,2]
[347392866,1735759840407,-1606.229472,0.00010758,2]
[347392867,1735759840419,-980.44946021,0.00010758,2]
[347392868,1735759840431,-10236.91571553,0.00010758,2]
[347392869,1735759840468,-44934.01162667,0.00010758,2]
[347392870,1735759840478,-8201.26,0.0001078,2]
[347392871,1735759840488,-500.0,0.0001078,2]
[347392872,1735759840497,-603.0864,0.0001078,2]
[347392873,1735759840507,-5000.0,0.0001078,2]
[347392874,1735759840516,-157.77040212,0.00010786,2]
[347392875,1735759840526,-275.67617773,0.000108,2]
[347392876,1735759840535,-150.0,0.00010803,2]
[347392877,1735759840544,-437.54,0.00010825,2]
[347392878,1735759840553,-5009.86444507,0.0001085,2]
[347392879,1735759840562,-3000.0,0.0001085,2]
[347392880,1735759840571,-420.0,0.00010875,2]
[347392881,1735759840581,-410.71588543,0.00010879,2]
[347392882,1735759840591,-227757.47623337,0.0001088,2]
[347392883,1735759840603,-7618.07795771,0.0001088,2]
[347392886,1735759840665,-1990.09577699,0.0001088,2]
[347392887,1735759840676,-454.22337551,0.0001088,2]
[347392888,1735759840687,-686.24633394,0.0001088,2]
[347392912,1735759843487,-12722.29820537,0.0001088,2]
[347392913,1735759843498,-305553.73858573,0.0001088,2]
[347392914,1735759843509,-6766.8835218,0.0001088,2]
[347392915,1735759843520,-4873.661787,0.0001088,2]
[347392916,1735759843560,-868.58039293,0.0001088,2]
[347392917,1735759843572,-1114.57956558,0.0001088,2]
[347392918,1735759843583,-401.0,0.0001088,2]
[347392919,1735759843752,-350.46,0.0001088,2]
[347392920,1735759843763,-522.19465061,0.0001088,2]
[347392921,1735759843774,-1014.5346323,0.0001088,2]
[347392922,1735759843785,-1098.0000002,0.0001088,2]
[347392923,1735759843796,-22491.7547035,0.0001088,2]
[347392924,1735759843807,-473.055,0.0001088,2]
[347392925,1735759843887,-931.13278959,0.0001088,2]
[347392928,1735759846428,-2409.4754117,0.0001078,2]
[347392929,1735759846440,-17034.26891818,0.0001078,2]
[347392930,1735759846449,-1216.0,0.0001088,2]
[347392931,1735759846458,-4537.11078604,0.0001088,2]
[347392932,1735759846469,-1908.90585835,0.0001088,2]
[347392933,1735759846517,-6459.86093828,0.0001088,2]
[347392934,1735759846606,-7404.41532893,0.0001088,2]
[347392935,1735759846618,-441.64,0.0001088,2]
[347392936,1735759846825,-27107.10397433,0.0001088,2]
[347392939,1735759846836,-2213.15629143,0.0001088,2]
[347393049,1735759951979,94819.03903634,0.00024564,30]
[347393053,1735760624969,757.54,8.219e-05,2]
[347393058,1735761013192,250.0,9.502e-05,2]
[347393073,1735761031711,-1000.0,9.618e-05,2]
[347393074,1735761031721,-727.25,9.828e-05,2]
[347393075,1735761031731,-150.0,9.888e-05,2]
[347393076,1735761031740,-150.0,9.888e-05,2]
[347393077,1735761031750,-150.0,9.888e-05,2]
[347393078,1735761031760,-150.0,9.888e-05,2]
[347393079,1735761031769,-2409.4754117,9.888e-05,2]
[347393080,1735761031779,-250.0,9.938e-05,2]
[347393081,1735761031788,-300.0,9.953e-05,2]
[347393082,1735761031797,-11395.30694254,9.954e-05,2]
[347393083,1735761031808,-915.47591036,9.954e-05,2]
[347393084,1735761031820,-294.0,9.954e-05,2]
[347393085,1735761031831,-3116.49737023,9.954e-05,2]
[347393086,1735761031843,-852.116,9.954e-05,2]
[347393087,1735761031854,-867.12377687,9.954e-05,2]
[347393088,1735761031864,-150.0,9.973e-05,2]
[347393089,1735761031873,-166.01,9.977e-05,2]
[347393090,1735761031883,-250.0,9.987e-05,2]
[347393091,1735761031893,-463.06739613,0.0001,3]
[347393092,1735761031907,-36.93260387,0.0001,3]
[347393093,1735761031916,-414.82035913,0.000101,3]
[347393094,1735761031927,-583.32405185,0.000101,3]
[347393095,1735761031970,-101.85558902,0.000101,3]
[347393096,1735761031980,-150.0,0.00010162,2]
[347393097,1735761031989,-843.39039683,0.000102,3]
[347393098,1735761032001,-756.60960317,0.000102,3]
[347393099,1735761032011,-166.01,0.00010289,2]
[347393100,1735761032020,-2200.0,0.000103,3]
[347393102,1735761032029,-939.27716869,0.000104,3]
[347393104,1735761032041,-1017.94255646,0.000104,3]
[347393106,1735761032052,-742.78027485,0.000104,3]
[347393108,1735761032062,-150.0,0.00010437,2]
[347393110,1735761032072,-150.0,0.00010437,2]
[347393112,1735761032081,-408.034,0.0001045,2]
[347393113,1735761032091,-757.54,0.00010472,2]
[347393115,1735761032100,-500.0,0.000105,3]
[347393116,1735761032110,-500.0,0.000106,3]
[347393117,1735761032120,-660.1068,0.0001068,2]
[347393118,1735761032130,-172.695,0.0001068,2]
[347393119,1735761032140,-3020.794,0.0001068,2]
[347393120,1735761032152,-23695.3926,0.0001068,2]
[347393121,1735761032161,-500.0,0.000107,3]
[347393122,1735761032172,-150.0,0.00010712,2]
[347393124,1735761032181,-4431.308,0.0001078,2]
[347393127,1735761032201,-55790.3408,0.0001078,2]
[347393130,1735761032213,-2500.0,0.0001078,2]
[347393132,1735761032222,-500.0,0.000108,3]
[347393134,1735761032232,-1000.0,0.00010821,2]
[347393135,1735761032242,-163.23155296,0.00010858,2]
[347393137,1735761032252,-3535.70776378,0.00010858,2]
[347393139,1735761032262,-1283.817,0.00010858,2]
[347393141,1735761032272,-163.23155294,0.00010872,2]
[347393142,1735761032282,-440.1488,0.00010877,2]
[347393143,1735761032292,-275164.71211411,0.0001088,2]
[347393144,1735761032351,-23553.81075181,0.0001088,2]
[347393145,1735761032363,-415.64841318,0.0001088,2]
[347393153,1735761037633,-347.31267172,0.0001078,2]
[347393154,1735761037644,-2152.68732828,0.0001078,2]
[347393155,1735761037655,-17128.88712172,0.0001088,2]
[347393156,1735761037666,-6733.11564634,0.0001088,2]
[347393157,1735761037678,-15646.9189667,0.0001088,2]
[347393158,1735761037762,-46679.82630974,0.0001088,2]
[347393159,1735761037774,-911.29719392,0.0001088,2]
[347393269,1735761039599,-349.65,0.0001088,2]
[347393272,1735761039611,-312.99490803,0.0001088,2]
[347393278,1735761039754,-3265.04821161,0.0001088,2]
[347393592,1735761042976,-2477.41185744,9.888e-05,2]
[347393594,1735761042986,-11349.81113256,0.0001088,2]
[347393704,1735761046524,-2465.38051258,0.0001088,2]
[347393710,1735761046568,-843.86151862,0.0001088,2]
[347393715,1735761046632,-77033.13248306,0.0001088,2]
[347393716,1735761046641,-3000.0,0.0001088,2]
[347393717,1735761046651,-163.23155294,0.00010886,2]
[347393718,1735761046661,-1266.0,0.00010894,2]
[347393719,1735761046671,-2013.0,0.00010894,2]
[347393720,1735761046680,-150.0,0.00010894,2]
[347393721,1735761046690,-566.0,0.00010894,2]
[347393722,1735761046699,-634.0,0.00010894,2]
[347393723,1735761046708,-1859.0,0.00010894,2]
[347393724,1735761046718,-819.0,0.00010894,2]
[347393725,1735761046727,-3774.0,0.00010894,2]
[347393726,1735761046737,-1257.0,0.00010894,2]
[347393727,1735761046746,-919.0,0.00010894,2]
[347393728,1735761046756,-3720.0,0.00010894,2]
[347393729,1735761046766,-536.0,0.00010894,2]
[347393730,1735761046775,-250.0,0.00010894,2]
[347393731,1735761046784,-150.0,0.00010894,2]
[347393732,1735761046794,-168.0,0.00010894,2]
[347393733,1735761046803,-1170.0,0.00010894,2]
[347393734,1735761046813,-3892.0,0.00010894,2]
[347393735,1735761046823,-7699.302,0.00010894,2]
[347393736,1735761046833,-1102.0,0.00010894,2]
[347393737,1735761046842,-250.0,0.00010894,2]
[347393738,1735761046851,-150.0,0.00010894,2]
[347393739,1735761046861,-281.21244,0.000109,2]
[347393740,1735761046871,-1000.0,0.000109,3]
[347393741,1735761046881,-163.23155294,0.000109,2]
[347393742,1735761046890,-165.15162245,0.000109,2]
[347393743,1735761046899,-2115.78485001,0.000109,2]
[347393744,1735761046909,-1276.1102652,0.000109,2]
[347393745,1735761046918,-420.0,0.00010949,2]
[347393746,1735761046927,-590.68702372,0.00010957,2]
[347393747,1735761046936,-1094.0,0.00010958,2]
[347393748,1735761046946,-1370.153826,0.00010958,2]
[347393749,1735761046955,-938.552702,0.00010958,2]
[347393750,1735761046965,-151.681506,0.00010958,2]
[347393751,1735761046975,-150.0,0.00010958,2]
[347393752,1735761046984,-500.0,0.00010958,2]
[347393753,1735761046994,-500.0,0.00010958,2]
[347393754,1735761047003,-500.0,0.00010958,2]
[347393755,1735761047013,-2182.68,0.00010958,2]
[347393756,1735761047023,-500.0,0.00010958,2]
[347393757,1735761047032,-772.27,0.00010958,2]
[347393758,1735761047042,-500.0,0.00010958,2]
[347393759,1735761047051,-500.0,0.00010958,2]
[347393760,1735761047061,-500.0,0.00010958,2]
[347393761,1735761047070,-500.0,0.00010958,2]
[347393762,1735761047079,-806.0,0.00010958,2]
[347393763,1735761047089,-500.0,0.00010958,2]
[347393764,1735761047099,-500.0,0.00010958,2]
[347393765,1735761047108,-507.03,0.00010958,2]
[347393766,1735761047117,-2141.18,0.00010958,2]
[347393767,1735761047127,-500.0,0.00010958,2]
[347393768,1735761047136,-500.0,0.00010958,2]
[347393769,1735761047146,-551.83,0.00010958,2]
[347393770,1735761047155,-500.0,0.00010958,2]
[347393771,1735761047166,-281.79315468,0.00010958,2]
[347393772,1735761047180,-214.56164646,0.00010958,2]
[347393773,1735761047190,-500.0,0.00010958,2]
[347393774,1735761047200,-500.0,0.00010958,2]
[347393775,1735761047209,-500.0,0.00010958,2]
[347393776,1735761047219,-538.38,0.00010958,2]
[347393777,1735761047229,-51.04991154,0.00010958,2]
[347393778,1735761215029,-500.0,0.00010958,7]
[347393780,1735761595304,681.78,8.219e-05,2]
[347393784,1735762060068,500.0,0.00010958,7]
[347393785,1735762144924,1449.27268997,0.00024604,30]
[347393790,1735762231594,-614.1,9.83e-05,2]
[347393791,1735762231603,-392.0552966,9.852e-05,2]
[347393792,1735762231641,-607.9447034,9.852e-05,2]
[347393793,1735762231650,-154.24342154,9.888e-05,2]
[347393794,1735762231660,-150.0,9.888e-05,2]
[347393795,1735762231669,-150.00000001,9.888e-05,2]
[347393796,1735762231678,-463.93,9.914e-05,2]
[347393797,1735762231687,-208.69374742,9.914e-05,2]
[347393798,1735762231697,-250.0,9.924e-05,2]
[347393799,1735762231706,-250.0,9.94e-05,2]
[347393800,1735762231716,-164.12,0.000101,2]
[347393801,1735762231725,-325.2,0.00010137,2]
[347393802,1735762231735,-183.69,0.000102,2]
[347393803,1735762231744,-418.643,0.0001041,2]
[347393804,1735762231753,-681.78,0.00010473,2]
[347393806,1735762232068,-3695.97835843,0.00010473,2]
[347393807,1735762232083,-1767.25164157,0.00010473,2]
[347393808,1735762232092,-6759.66,0.00010473,2]
[347393809,1735762232101,-4207.0,0.00010526,2]
[347393810,1735762232110,-150.99,0.00010633,2]
[347393811,1735762232119,-1051.25976398,0.00010739,2]
[347393812,1735762232128,-418.8101461,0.00010739,2]
[347393813,1735762232139,-730.83050281,0.00010739,2]
[347393814,1735762232148,-1125.8804266,0.00010739,2]
[347393815,1735762232157,-1000.0,0.00010779,2]
[347393816,1735762232166,-6346.54547058,0.0001078,2]
[347393817,1735762232200,-11607.76362942,0.0001078,2]
[347393818,1735762232210,-500.0,0.0001078,2]
[347393819,1735762232219,-3233.808,0.0001085,2]
[347393820,1735762232228,-172.223,0.0001085,2]
[347393821,1735762232237,-2694.3626,0.0001085,2]
[347393822,1735762232246,-1000.0,0.00010858,2]
[347393823,1735762232255,-5408.6033,0.00010858,2]
[347393824,1735762232264,-793.6056,0.00010858,2]
[347393825,1735762232274,-5000.0,0.00010858,2]
[347393826,1735762232283,-162.46165704,0.0001089,2]
[347393827,1735762232293,-170.11631009,0.000109,2]
[347393828,1735762232302,-611.11690654,0.000109,2]
[347393829,1735762232311,-150.0,0.00010902,2]
[347393830,1735762232321,-150.0,0.00010902,2]
[347393831,1735762232330,-2013.0,0.00010902,2]
[347393832,1735762232339,-1266.0,0.00010902,2]
[347393833,1735762232348,-634.0,0.00010902,2]
[347393834,1735762232357,-566.0,0.00010902,2]
[347393835,1735762232367,-150.0,0.00010902,2]
[347393836,1735762232377,-1859.0,0.00010902,2]
[347393837,1735762232387,-1257.0,0.00010902,2]
[347393838,1735762232397,-819.0,0.00010902,2]
[347393839,1735762232406,-919.0,0.00010902,2]
[347393840,1735762232416,-3774.0,0.00010902,2]
[347393841,1735762232425,-3720.0,0.00010902,2]
[347393842,1735762232435,-536.0,0.00010902,2]
[347393843,1735762232444,-3892.0,0.00010902,2]
[347393844,1735762232453,-150.0,0.00010902,2]
[347393845,1735762232465,-170.11631009,0.0001093,2]
[347393846,1735762232475,-1531.32336825,0.00010934,2]
[347393847,1735762232484,-200.0,0.00010936,2]
[347393848,1735762232494,-8985.1843526,0.00010954,2]
[347393849,1735762232503,-954.0,0.00010958,2]
[347393850,1735762232514,-150.0,0.00010958,2]
[347393851,1735762232523,-613.64375269,0.00010958,2]
[347393852,1735762232532,-500.0,0.00010958,2]
[347393853,1735762232542,-500.0,0.00010958,2]
[347393854,1735762232552,-500.0,0.00010958,2]
[347393855,1735762232561,-886.43,0.00010958,2]
[347393856,1735762232571,-500.0,0.00010958,2]
[347393857,1735762232580,-561.36,0.00010958,2]
[347393858,1735762232589,-2000.0,0.00010958,2]
[347393859,1735762232599,-641.65,0.00010958,2]
[347393860,1735762232608,-1121.21,0.00010958,2]
[347393861,1735762232618,-200.0,0.00010958,2]
[347393862,1735762232627,-500.0,0.00010958,2]
[347393863,1735762232636,-500.0,0.00010958,2]
[347393864,1735762232645,-500.0,0.00010958,2]
[347393865,1735762232654,-500.0,0.00010958,2]
[347393866,1735762232664,-500.0,0.00010958,2]
[347393867,1735762232673,-500.0,0.00010958,2]
[347393868,1735762232682,-3653.8,0.00010958,2]
[347393869,1735762232692,-500.0,0.00010958,2]
[347393870,1735762232701,-1238.2,0.00010958,2]
[347393871,1735762232711,-721.97,0.00010958,2]
[347393872,1735762232720,-500.0,0.00010958,2]
[347393873,1735762232729,-500.0,0.00010958,2]
[347393874,1735762232738,-500.0,0.00010958,2]
[347393875,1735762232747,-500.0,0.00010958,2]
[347393876,1735762232756,-500.0,0.00010958,2]
[347393877,1735762232766,-1062.09,0.00010958,2]
[347393878,1735762232775,-624.19,0.00010958,2]
[347393879,1735762232784,-577.12403399,0.00010958,2]
[347393880,1735762232793,-500.0,0.00010958,2]
[347393881,1735762232803,-500.0,0.00010958,2]
[347393882,1735762232812,-1184.6,0.00010958,2]
[347393883,1735762232821,-500.0,0.00010958,2]
[347393884,1735762232830,-2074.51,0.00010958,2]
[347393885,1735762232840,-771.12,0.00010958,2]
[347393886,1735762232849,-500.0,0.00010958,2]
[347393887,1735762232858,-500.0,0.00010958,2]
[347393888,1735762232868,-500.0,0.00010958,2]
[347393889,1735762232877,-500.0,0.00010958,2]
[347393890,1735762232887,-500.0,0.00010958,2]
[347393891,1735762232900,-500.0,0.00010958,2]
[347393892,1735762232909,-500.0,0.00010958,2]
[347393893,1735762232919,-500.0,0.00010958,2]
[347393894,1735762232928,-500.0,0.00010958,2]
[347393895,1735762232937,-909.35,0.00010958,2]
[347393896,1735762232949,-500.0,0.00010958,2]
[347393897,1735762232960,-1442.72,0.00010958,2]
[347393898,1735762232970,-2016.28,0.00010958,2]
[347393899,1735762232980,-500.0,0.00010958,2]
[347393900,1735762232990,-636.94,0.00010958,2]
[347393901,1735762232999,-500.0,0.00010958,2]
[347393902,1735762233008,-500.0,0.00010958,2]
[347393903,1735762233017,-500.0,0.00010958,2]
[347393904,1735762233027,-500.0,0.00010958,2]
[347393905,1735762233036,-500.0,0.00010958,2]
[347393906,1735762233046,-500.0,0.00010958,2]
[347393907,1735762233055,-500.0,0.00010958,2]
[347393908,1735762233065,-1066.75,0.00010958,2]
[347393909,1735762233075,-500.0,0.00010958,2]
[347393910,1735762233084,-500.0,0.00010958,2]
[347393911,1735762233094,-500.0,0.00010958,2]
[347393912,1735762233104,-1273.39,0.00010958,2]
[347393913,1735762233113,-978.31,0.00010958,2]
[347393914,1735762233123,-517.41,0.00010958,2]
[347393915,1735762233132,-1097.82,0.00010958,2]
[347393916,1735762233142,-628.41,0.00010958,2]
[347393917,1735762233151,-500.0,0.00010958,2]
[347393918,1735762233161,-500.0,0.00010958,2]
[347393919,1735762233171,-549.92,0.00010958,2]
[347393920,1735762233180,-500.0,0.00010958,2]
[347393921,1735762233189,-500.0,0.00010958,2]
[347393922,1735762233199,-500.0,0.00010958,2]
[347393923,1735762233210,-1423.78,0.00010958,2]
[347393924,1735762233220,-500.0,0.00010958,2]
[347393925,1735762233229,-500.0,0.00010958,2]
[347393926,1735762233239,-500.0,0.00010958,2]
[347393927,1735762233249,-500.0,0.00010958,2]
[347393928,1735762233258,-500.0,0.00010958,2]
[347393929,1735762233268,-10295.48,0.00010958,2]
[347393930,1735762233278,-500.0,0.00010958,2]
[347393931,1735762233288,-1373.57,0.00010958,2]
[347393932,1735762233297,-869.04,0.00010958,2]
[347393933,1735762233306,-524.38,0.00010958,2]
[347393934,1735762233316,-500.0,0.00010958,2]
[347393935,1735762233326,-500.0,0.00010958,2]
[347393936,1735762233336,-1331.13,0.00010958,2]
[347393937,1735762233345,-500.0,0.00010958,2]
[347393938,1735762233355,-500.0,0.00010958,2]
[347393939,1735762233365,-686.12,0.00010958,2]
[347393940,1735762233375,-500.0,0.00010958,2]
[347393941,1735762233384,-525.72,0.00010958,2]
[347393942,1735762233394,-1283.95,0.00010958,2]
[347393943,1735762233404,-500.0,0.00010958,2]
[347393944,1735762233414,-500.0,0.00010958,2]
[347393945,1735762233424,-500.0,0.00010958,2]
[347393946,1735762233433,-500.0,0.00010958,2]
[347393947,1735762233443,-608.17,0.00010958,2]
[347393948,1735762233454,-833.54,0.00010958,2]
[347393949,1735762233465,-500.0,0.00010958,2]